bitfinex/quotes_BTCUSD_20250131
["timestamp","ask_amount","ask_price","bid_price","bid_amount"]
[1738320422455,0.37480961,104270.0,104260.0,1.28417551]
[1738320426826,0.37480961,104270.0,104260.0,1.38141867]
[1738320427030,0.37480961,104270.0,104260.0,1.42691867]
[1738320428160,0.37480961,104270.0,104260.0,1.20131551]
[1738320430451,0.37480961,104270.0,104260.0,1.42725867]
[1738320433991,0.37480961,104270.0,104260.0,0.55885867]
[1738320435358,0.37480961,104270.0,104260.0,0.542192]
[1738320436339,0.37480961,104270.0,104260.0,0.54972441]
[1738320436837,0.37480961,104270.0,104260.0,0.55086565]
[1738320437101,0.37480961,104270.0,104260.0,0.55024648]
[1738320437613,0.37480961,104270.0,104260.0,0.54996326]
[1738320438390,0.37480961,104270.0,104260.0,0.54981222]
[1738320439782,0.37480961,104270.0,104260.0,1.41821222]
[1738320441985,0.37480961,104270.0,104260.0,1.44812376]
[1738320443729,0.33644761,104270.0,104260.0,1.44812376]
[1738320443949,0.18299961,104270.0,104260.0,3.26073822]
[1738320444166,0.18299961,104270.0,104260.0,2.76810499]
[1738320444372,0.18299961,104270.0,104260.0,2.73819822]
[1738320444796,0.16381861,104270.0,104260.0,2.73819822]
[1738320444996,0.14463761,104270.0,104260.0,2.73819822]
[1738320445156,0.12545661,104270.0,104260.0,2.73819822]
[1738320445353,0.10627561,104270.0,104260.0,2.73819822]
[1738320445545,0.08709461,104270.0,104260.0,2.73819822]
[1738320445783,0.04873261,104270.0,104260.0,2.73819822]
[1738320445987,6.1e-07,104270.0,104260.0,2.73819822]
[1738320446187,6.1e-07,104270.0,104260.0,1.51821222]
[1738320446588,6.1e-07,104270.0,104260.0,1.54810452]
[1738320447424,6.1e-07,104270.0,104260.0,1.51821222]
[1738320448907,6.1e-07,104270.0,104260.0,0.64981222]
[1738320450237,6.1e-07,104270.0,104260.0,0.66878381]
[1738320455082,6.1e-07,104270.0,104260.0,0.69866097]
[1738320458454,6.1e-07,104270.0,104260.0,0.70862097]
[1738320461821,6.1e-07,104270.0,104260.0,0.71478097]
[1738320463588,6.1e-07,104270.0,104260.0,0.71503097]
[1738320467364,6.1e-07,104270.0,104260.0,0.80108018]
[1738320469910,6.1e-07,104270.0,104260.0,0.85861018]
[1738320470147,6.1e-07,104270.0,104260.0,0.80108018]
[1738320471745,0.0001219,104290.0,104270.0,0.15024939]
[1738320471878,0.0001219,104290.0,104280.0,0.143843]
[1738320472077,0.0001219,104290.0,104280.0,0.14626879]
[1738320472493,0.0001219,104290.0,104280.0,1.01466879]
[1738320473686,0.0815219,104290.0,104280.0,1.01466879]
[1738320478336,0.0815219,104290.0,104280.0,0.47526879]
[1738320478555,0.1302219,104290.0,104280.0,0.47526879]
[1738320478992,0.1302219,104290.0,104280.0,0.48501712]
[1738320481142,0.1302219,104290.0,104280.0,0.47526879]
[1738320481810,0.1302219,104290.0,104280.0,0.62526879]
[1738320482957,0.6096819,104290.0,104280.0,0.62526879]
[1738320487047,0.4795819,104290.0,104280.0,0.62526879]
[1738320487247,0.4795819,104290.0,104280.0,1.58513383]
[1738320488080,0.4795819,104290.0,104280.0,1.8282946]
[1738320489244,0.4795819,104290.0,104280.0,1.9090946]
[1738320490490,0.4795819,104290.0,104280.0,1.5800946]
[1738320496312,0.4795819,104290.0,104280.0,2.4484946]
[1738320498910,0.4795819,104290.0,104280.0,2.36744101]
[1738320500132,0.4795819,104290.0,104280.0,2.38538306]
[1738320502273,0.4795819,104290.0,104280.0,1.51698306]
[1738320502492,0.4795819,104290.0,104280.0,0.55793444]
[1738320502695,0.4795819,104290.0,104280.0,0.53999239]
[1738320505123,0.4795819,104290.0,104280.0,0.54008016]
[1738320508174,0.4795819,104290.0,104280.0,1.40848016]
[1738320510902,0.4795819,104290.0,104280.0,1.32768016]
[1738320521312,0.4795819,104290.0,104280.0,1.82768016]
[1738320524248,0.4795819,104290.0,104280.0,1.85761779]
[1738320524473,0.4795819,104290.0,104280.0,1.93867138]
[1738320524867,0.4795819,104290.0,104280.0,2.01567138]
[1738320528772,0.4795819,104290.0,104280.0,2.16051454]
[1738320530363,0.4795819,104290.0,104280.0,2.16804695]
[1738320530585,0.3836969,104290.0,104280.0,2.25409616]
[1738320530836,0.3645199,104290.0,104280.0,2.25409616]
[1738320531046,0.2878119,104290.0,104280.0,2.27709616]
[1738320531513,0.2878119,104290.0,104280.0,2.24715853]
[1738320531987,0.2302809,104290.0,104280.0,2.24715853]
[1738320534336,0.2302809,104290.0,104280.0,2.16110932]
[1738320535596,0.2111039,104290.0,104280.0,2.16110932]
[1738320536033,0.1477499,104290.0,104280.0,2.16110932]
[1738320536263,0.1093959,104290.0,104280.0,2.16110932]
[1738320536390,0.0902189,104290.0,104280.0,2.16110932]
[1738320536818,0.0326879,104290.0,104280.0,2.16110932]
[1738320537018,9e-07,104290.0,104280.0,2.16110932]
[1738320540079,8e-07,104290.0,104280.0,2.16110932]
[1738320540522,8e-07,104290.0,104280.0,2.16494432]
[1738320540972,8e-07,104290.0,104280.0,2.22247432]
[1738320543919,8e-07,104290.0,104280.0,2.32247432]
[1738320545130,8e-07,104290.0,104280.0,2.35233598]
[1738320545764,8e-07,104290.0,104280.0,2.32247432]
[1738320546180,8e-07,104290.0,104280.0,2.35233216]
[1738320551650,8e-07,104290.0,104280.0,2.35258815]
[1738320552690,8e-07,104290.0,104280.0,1.48418815]
[1738320558700,8e-07,104290.0,104280.0,2.35258815]
[1738320566692,8e-07,104290.0,104280.0,2.35250038]
[1738320569565,8e-07,104290.0,104280.0,2.38081218]
[1738320570381,8e-07,104290.0,104280.0,2.38089995]
[1738320574866,8e-07,104310.0,104300.0,0.54450818]
[1738320575057,8e-07,104310.0,104300.0,1.65150565]
[1738320575276,8e-07,104310.0,104300.0,1.65468225]
[1738320576066,8e-07,104310.0,104300.0,2.64608225]
[1738320576067,1.9e-07,104310.0,104300.0,2.64608225]
[1738320577267,1.9e-07,104310.0,104300.0,2.73217928]
[1738320578096,1.9e-07,104310.0,104300.0,2.80927928]
[1738320578962,1.8e-07,104320.0,104310.0,0.30133441]
[1738320579168,1.8e-07,104320.0,104310.0,1.54615618]
[1738320579362,1.8e-07,104320.0,104310.0,1.54931893]
[1738320579573,1.8e-07,104320.0,104310.0,1.54940667]
[1738320580016,1.8e-07,104320.0,104310.0,1.67240667]
[1738320580222,1.8e-07,104320.0,104310.0,1.75140667]
[1738320580856,1.8e-07,104320.0,104310.0,1.80893667]
[1738320581193,1.8e-07,104320.0,104310.0,1.83724847]
[1738320581576,1.8e-07,104320.0,104310.0,1.04021865]
[1738320581781,1.8e-07,104320.0,104310.0,1.04013091]
[1738320581986,1.8e-07,104320.0,104310.0,1.04021865]
[1738320582891,1.8e-07,104320.0,104310.0,1.01866073]
[1738320584125,1.8e-07,104320.0,104310.0,1.10475776]
[1738320585985,1.8e-07,104320.0,104310.0,1.12416719]
[1738320586684,1.8e-07,104320.0,104310.0,1.12425493]
[1738320587106,1.8e-07,104320.0,104310.0,1.04604313]
[1738320587311,1.8e-07,104320.0,104310.0,1.04595539]
[1738320587503,1.8e-07,104320.0,104310.0,1.04604313]
[1738320587870,1.8e-07,104320.0,104310.0,1.04595539]
[1738320588079,1.8e-07,104320.0,104310.0,1.04604313]
[1738320588482,1.8e-07,104320.0,104310.0,1.04595539]
[1738320588681,1.8e-07,104320.0,104310.0,0.9599461]
[1738320588888,1.8e-07,104320.0,104310.0,0.95985836]
[1738320589129,0.12861246,104340.0,104330.0,0.293774]
[1738320589328,0.12861246,104340.0,104330.0,1.59322655]
[1738320589486,0.12861246,104340.0,104330.0,1.59633808]
[1738320589712,0.12861246,104340.0,104330.0,1.60249808]
[1738320589922,0.12861246,104340.0,104330.0,1.59633808]
[1738320590288,0.0464,104360.0,104350.0,0.293747]
[1738320590497,0.0464,104360.0,104350.0,2.2833028]
[1738320590701,0.0464,104360.0,104350.0,2.28640968]
[1738320592288,0.1284,104360.0,104350.0,2.28640968]
[1738320594803,0.1284,104360.0,104350.0,2.38365284]
[1738320597971,0.1284,104360.0,104350.0,1.32736106]
[1738320598613,0.1284,104360.0,104350.0,1.3370298]
[1738320599926,0.1284,104360.0,104350.0,1.25597621]
[1738320600286,0.1284,104360.0,104350.0,0.38757621]
[1738320600517,0.1285219,104360.0,104350.0,0.38757621]
[1738320601379,0.1285219,104360.0,104350.0,0.37790747]
[1738320601954,0.1285219,104360.0,104350.0,0.45896106]
[1738320602316,0.1285219,104360.0,104350.0,0.37790747]
[1738320606177,0.1285219,104360.0,104350.0,1.24630747]
[1738320612243,0.1285219,104360.0,104350.0,0.70690747]
[1738320614878,0.6076519,104360.0,104350.0,0.70690747]
[1738320618293,0.77127856,104360.0,104350.0,0.70690747]
[1738320618520,0.70736265,104360.0,104350.0,0.70690747]
[1738320620300,0.70736265,104360.0,104350.0,0.62585388]
[1738320620457,0.70489506,104360.0,104350.0,0.62585388]
[1738320620867,0.70489506,104360.0,104350.0,0.29685388]
[1738320621092,0.84862806,104360.0,104350.0,0.15310688]
[1738320621513,1.07003841,104360.0,104350.0,0.00310688]
[1738320621755,1.131092,104360.0,104350.0,0.00310688]
[1738320621956,1.05003841,104360.0,104350.0,0.00310688]
[1738320622959,1.08003841,104360.0,104350.0,0.00310688]
[1738320624513,0.285147,104350.0,104340.0,0.15922806]
[1738320624702,0.87737998,104350.0,104340.0,0.30298806]
[1738320624906,0.87737998,104350.0,104340.0,0.15922806]
[1738320626866,0.87737998,104350.0,104340.0,0.16210209]
[1738320627259,0.87737998,104350.0,104340.0,0.16235787]
[1738320629386,0.89656184,104350.0,104340.0,0.16235787]
[1738320630303,0.90626511,104350.0,104340.0,0.16235787]
[1738320632341,0.90626511,104350.0,104340.0,0.30611787]
[1738320632567,0.90626511,104350.0,104340.0,0.16235787]
[1738320643148,1.0103187,104350.0,104340.0,0.01295921]
[1738320643323,0.143774,104330.0,104320.0,0.329]
[1738320643541,0.00246759,104320.0,104310.0,0.27303758]
[1738320643743,0.57884075,104320.0,104310.0,0.27303758]
[1738320643913,0.57884075,104320.0,104310.0,0.19198399]
[1738320644123,0.57884075,104320.0,104310.0,0.00025599]
[1738320644124,0.72016116,104320.0,104310.0,0.00025599]
[1738320644567,0.72064299,104320.0,104310.0,0.15025599]
[1738320644796,0.81799975,104320.0,104310.0,0.29405799]
[1738320645961,0.57932258,104320.0,104310.0,0.23130958]
[1738320646174,0.57932258,104320.0,104310.0,0.37511158]
[1738320647699,0.57685499,104320.0,104310.0,0.37511158]
[1738320647875,0.57685499,104320.0,104310.0,0.70411158]
[1738320648077,0.57932258,104320.0,104310.0,0.70411158]
[1738320651120,0.57932258,104320.0,104310.0,0.70681955]
[1738320655900,0.57685499,104320.0,104310.0,0.78191955]
[1738320657161,0.59407258,104320.0,104310.0,0.70086596]
[1738320657371,0.59407258,104320.0,104310.0,0.78191955]
[1738320657576,0.57685499,104320.0,104310.0,0.78191955]
[1738320660489,0.57685499,104320.0,104310.0,0.70086596]
[1738320660689,0.57932258,104320.0,104310.0,0.62576596]
[1738320662126,0.74364299,104320.0,104310.0,0.48196396]
[1738320662301,0.84099975,104320.0,104310.0,0.48196396]
[1738320663124,0.84099975,104320.0,104310.0,0.62576596]
[1738320663788,0.84099975,104320.0,104310.0,0.33196396]
[1738320663989,0.94069975,104320.0,104310.0,0.33196396]
[1738320665723,0.94069975,104320.0,104310.0,0.00296396]
[1738320672723,0.70364299,104320.0,104310.0,0.00296396]
[1738320673647,0.70244299,104320.0,104310.0,0.00296396]
[1738320675405,0.70244299,104320.0,104310.0,0.14676596]
[1738320677435,0.68244299,104320.0,104310.0,0.14676596]
[1738320677732,0.70244299,104320.0,104310.0,0.14676596]
[1738320677940,0.79979975,104320.0,104310.0,0.14676596]
[1738320683104,0.70244299,104320.0,104310.0,0.14676596]
[1738320684777,0.70256489,104320.0,104310.0,0.14676596]
[1738320686911,0.29980805,104320.0,104310.0,0.14676596]
[1738320691915,0.32980805,104320.0,104310.0,0.14676596]
[1738320697637,0.18602005,104320.0,104310.0,0.14676596]
[1738320697854,0.32980805,104320.0,104310.0,0.14676596]
[1738320699109,0.42291278,104320.0,104310.0,0.14676596]
[1738320714529,0.42291278,104320.0,104310.0,0.00296396]
[1738320722406,0.30980805,104320.0,104310.0,0.00296396]
[1738320722610,0.32980805,104320.0,104310.0,0.22286596]
[1738320724091,0.32980805,104320.0,104310.0,0.07906396]
[1738320724330,0.16848764,104320.0,104310.0,0.22286596]
[1738320724542,0.14548764,104320.0,104310.0,0.35301955]
[1738320724749,0.16602005,104320.0,104310.0,0.50301955]
[1738320724957,0.01577689,104320.0,104310.0,0.58407314]
[1738320725175,0.01577689,104320.0,104310.0,0.91307314]
[1738320725388,0.01577689,104320.0,104310.0,0.83201955]
[1738320731154,0.01577689,104320.0,104310.0,0.91307314]
[1738320736849,0.01577689,104320.0,104310.0,1.45247314]
[1738320738249,0.01577689,104320.0,104310.0,1.45247314]
[1738320760152,0.01577689,104320.0,104310.0,1.46243314]
[1738320771153,0.01577689,104320.0,104310.0,1.46859314]
[1738320776096,0.01577689,104320.0,104310.0,1.64688989]
[1738320776312,8.9e-07,104320.0,104310.0,1.68431659]
[1738320776530,8.9e-07,104320.0,104310.0,1.6827341]
[1738320776737,8.9e-07,104320.0,104310.0,1.71262143]
[1738320783689,8.9e-07,104320.0,104310.0,1.7317869]
[1738320784855,8.9e-07,104320.0,104310.0,1.7893169]
[1738320785590,8.9e-07,104320.0,104310.0,1.75942957]
[1738320786311,8.9e-07,104320.0,104310.0,1.78923875]
[1738320786905,8.9e-07,104320.0,104310.0,1.76092695]
[1738320787963,8.9e-07,104320.0,104310.0,1.51776618]
[1738320793962,8.9e-07,104320.0,104310.0,1.54607798]
[1738320799133,8.9e-07,104320.0,104310.0,1.51776618]
[1738320803208,8.9e-07,104320.0,104310.0,1.76066808]
[1738320803693,8.9e-07,104320.0,104310.0,1.78897988]
[1738320808514,8.9e-07,104320.0,104310.0,1.76066808]
[1738320810673,8.9e-07,104320.0,104310.0,1.78897988]
[1738320811387,8.9e-07,104320.0,104310.0,0.92057988]
[1738320812749,8.9e-07,104320.0,104310.0,1.78897988]
[1738320815069,6.9e-07,104340.0,104330.0,0.30130641]
[1738320815304,1.7e-07,104340.0,104330.0,1.65115712]
[1738320815717,1.7e-07,104340.0,104330.0,1.65378433]
[1738320817310,1.7e-07,104340.0,104330.0,2.52218433]
[1738320820516,1.7e-07,104340.0,104330.0,2.59828433]
[1738320821221,9.7e-07,104350.0,104340.0,0.05383241]
[1738320821432,3.8e-07,104400.0,104390.0,0.30984563]
[1738320821646,3.8e-07,104400.0,104390.0,0.67703854]
[1738320821858,0.04780254,104410.0,104400.0,0.01615463]
[1738320822066,0.02864754,104410.0,104400.0,1.41752019]
[1738320822277,0.02864754,104410.0,104400.0,1.41656257]
[1738320822512,0.02864754,104410.0,104400.0,1.54399041]
[1738320822722,0.02864754,104410.0,104400.0,1.55009165]
[1738320822943,0.02864754,104410.0,104400.0,1.55629165]
[1738320824226,0.02864754,104410.0,104400.0,1.2878515]
[1738320825097,0.02864754,104410.0,104400.0,1.41108114]
[1738320826549,0.02864754,104410.0,104400.0,0.7484515]
[1738320826978,0.10824754,104410.0,104400.0,0.7484515]
[1738320827411,0.46320997,104410.0,104400.0,0.00254386]
[1738320827619,0.46225138,104410.0,104400.0,0.00254386]
[1738320827830,0.00246759,104400.0,104390.0,0.3452072]
[1738320828037,0.24681075,104400.0,104390.0,0.3036222]
[1738320828242,0.24681075,104400.0,104390.0,0.1536222]
[1738320828656,0.24681075,104400.0,104390.0,0.3036222]
[1738320828657,0.39048875,104400.0,104390.0,0.3036222]
[1738320828886,0.24681075,104400.0,104390.0,0.3036222]
[1738320829716,0.24681075,104400.0,104390.0,0.42685184]
[1738320831651,0.24681075,104400.0,104390.0,0.3036222]
[1738320832481,0.72576075,104400.0,104390.0,0.3036222]
[1738320833341,0.72576075,104400.0,104390.0,0.42685184]
[1738320835742,0.72576075,104400.0,104390.0,0.3036222]
[1738320836812,0.72576075,104400.0,104390.0,0.30613993]
[1738320837026,0.72576075,104400.0,104390.0,0.30639571]
[1738320838189,0.86697116,104400.0,104390.0,0.30639571]
[1738320838392,0.86697116,104400.0,104390.0,0.16270471]
[1738320838537,0.86697116,104400.0,104390.0,0.30639571]
[1738320838983,0.9757057,104400.0,104390.0,0.01270471]
[1738320839430,0.73713853,104400.0,104390.0,0.14646451]
[1738320839768,0.88081653,104400.0,104390.0,0.14646451]
[1738320840824,0.88081653,104400.0,104390.0,0.00277351]
[1738320841026,0.87834894,104400.0,104390.0,0.00277351]
[1738320849054,0.88776908,104400.0,104390.0,0.00277351]
[1738320851305,0.98512584,104400.0,104390.0,0.00277351]
[1738320851500,0.97374806,104400.0,104390.0,0.00277351]
[1738320851935,1.0969777,104400.0,104390.0,0.00277351]
[1738320852796,0.97374806,104400.0,104390.0,0.00277351]
[1738320853075,0.97474806,104400.0,104390.0,0.00277351]
[1738320855724,1.0979777,104400.0,104390.0,0.00277351]
[1738320859777,1.1987777,104400.0,104390.0,0.00277351]
[1738320860793,1.0969777,104400.0,104390.0,0.00277351]
[1738320861263,1.0989777,104400.0,104390.0,0.00277351]
[1738320861461,1.0999777,104400.0,104390.0,0.00277351]
[1738320864799,1.4211777,104400.0,104390.0,0.00277351]
[1738320866510,1.29794806,104400.0,104390.0,0.00277351]
[1738320868523,1.2005913,104400.0,104390.0,0.00277351]
[1738320870708,1.32382094,104400.0,104390.0,0.00277351]
[1738320871594,1.2005913,104400.0,104390.0,0.00277351]
[1738320875289,1.2005913,104400.0,104390.0,0.00273351]
[1738320877097,1.1247913,104400.0,104390.0,0.00273351]
[1738320877476,1.16650041,104400.0,104390.0,0.00273351]
[1738320879532,1.11820041,104400.0,104390.0,0.00273351]
[1738320880531,1.0764913,104400.0,104390.0,0.00273351]
[1738320882444,0.7552913,104400.0,104390.0,0.00273351]
[1738320882644,0.83625398,104400.0,104390.0,0.00273351]
[1738320884119,0.7552913,104400.0,104390.0,0.00273351]
[1738320886671,0.83625398,104400.0,104390.0,0.00273351]
[1738320886865,0.93361074,104400.0,104390.0,0.00273351]
[1738320889624,0.166705,104380.0,104370.0,0.047]
[1738320889903,0.74289816,104380.0,104370.0,0.0471385]
[1738320890823,0.74289816,104380.0,104370.0,0.0001385]
[1738320895144,0.98242516,104380.0,104360.0,0.62481745]
[1738320895361,0.24096216,104370.0,104360.0,0.43317445]
[1738320895562,0.57619316,104370.0,104360.0,0.43317445]
[1738320896885,0.71991216,104370.0,104360.0,0.43317445]
[1738320897104,0.71991216,104370.0,104360.0,0.43554262]
[1738320898773,0.81726892,104370.0,104360.0,0.43554262]
[1738320900792,0.71991216,104370.0,104360.0,0.43554262]
[1738320901251,0.57619316,104370.0,104360.0,0.43554262]
[1738320901449,0.71991216,104370.0,104360.0,0.43654262]
[1738320901990,0.71991216,104370.0,104360.0,0.43754262]
[1738320902739,0.57619316,104370.0,104360.0,0.43754262]
[1738320903507,0.71991216,104370.0,104360.0,0.43754262]
[1738320904168,0.81726892,104370.0,104360.0,0.29381062]
[1738320904370,0.84026892,104370.0,104360.0,0.29381062]
[1738320904530,0.84026892,104370.0,104360.0,0.24491062]
[1738320905259,0.84026892,104370.0,104360.0,0.09495547]
[1738320906050,0.9212316,104370.0,104360.0,0.01425547]
[1738320906239,0.9212316,104370.0,104360.0,0.00542972]
[1738320906404,0.9707316,104370.0,104360.0,0.00436817]
[1738320907949,0.9707316,104370.0,104360.0,0.00262395]
[1738320908155,0.9708534,104370.0,104360.0,0.00262395]
[1738320908560,1.0474534,104370.0,104360.0,0.00262395]
[1738320911846,1.0484534,104370.0,104360.0,0.00262395]
[1738320912113,1.0514534,104370.0,104360.0,0.00262395]
[1738320922027,0.9748534,104370.0,104360.0,0.00262395]
[1738320925790,1.13311608,104370.0,104360.0,0.00262395]
[1738320926756,1.12911608,104370.0,104360.0,0.00262395]
[1738320926958,1.12911608,104370.0,104340.0,0.1323598]
[1738320926959,0.023,104350.0,104340.0,0.1323598]
[1738320927272,0.82390284,104350.0,104340.0,0.1323598]
[1738320927469,0.9212596,104350.0,104340.0,0.1323598]
[1738320930955,0.84029692,104350.0,104340.0,0.1323598]
[1738320931295,0.9212596,104350.0,104340.0,0.1323598]
[1738320933120,0.9212596,104350.0,104340.0,0.13261579]
[1738320934066,0.92919578,104350.0,104340.0,0.08641579]
[1738320935304,0.86754399,104350.0,104340.0,0.08641579]
[1738320937056,0.86754399,104350.0,104340.0,0.08637579]
[1738320951291,0.86754399,104350.0,104340.0,0.01011579]
[1738320951507,0.02546759,104320.0,104310.0,0.24855099]
[1738320951716,0.26649875,104320.0,104310.0,0.20061799]
[1738320951921,0.60166075,104320.0,104310.0,0.35061799]
[1738320952125,0.74544875,104320.0,104310.0,0.35061799]
[1738320952328,0.60166075,104320.0,104310.0,0.35061799]
[1738320952957,0.60166075,104320.0,104310.0,0.35161799]
[1738320953361,0.60166075,104320.0,104310.0,0.43358067]
[1738320953778,0.60166075,104320.0,104310.0,0.35261799]
[1738320954313,0.60166075,104320.0,104310.0,0.43491799]
[1738320954719,0.60166075,104320.0,104310.0,0.51588067]
[1738320955577,0.62078809,104320.0,104310.0,0.51588067]
[1738320956477,0.66717874,104320.0,104310.0,0.51588067]
[1738320957704,0.6183205,104320.0,104310.0,0.51588067]
[1738320962629,0.6183205,104320.0,104310.0,0.84488067]
[1738320966504,0.76457609,104320.0,104310.0,0.62011599]
[1738320966886,0.76457609,104320.0,104310.0,0.14111599]
[1738320967647,0.76457609,104320.0,104310.0,0.01021599]
[1738320967856,0.86193285,104320.0,104310.0,0.01121599]
[1738320968028,0.86193285,104320.0,104310.0,0.01221599]
[1738320968538,1.02139062,104320.0,104310.0,0.01221599]
[1738320968962,0.94042794,104320.0,104310.0,0.01221599]
[1738320969991,0.94042794,104320.0,104310.0,0.01121599]
[1738320970464,0.84307118,104320.0,104310.0,0.01121599]
[1738320970719,0.7621085,104320.0,104310.0,0.01121599]
[1738320970970,0.7621085,104320.0,104310.0,0.01021599]
[1738320971485,0.76457609,104320.0,104310.0,0.08531599]
[1738320971890,0.76457609,104320.0,104310.0,0.22911799]
[1738320972292,0.86193285,104320.0,104310.0,0.22911799]
[1738320972492,0.76457609,104320.0,104310.0,0.22911799]
[1738320976143,0.76457609,104320.0,104310.0,0.08531599]
[1738320977490,0.76457609,104320.0,104310.0,0.22911799]
[1738320979436,0.86193285,104320.0,104310.0,0.22911799]
[1738320980666,0.76457609,104320.0,104310.0,0.22911799]
[1738320983834,0.76457609,104320.0,104310.0,0.15401799]
[1738320984211,0.76457609,104320.0,104310.0,0.01021599]
[1738320985515,0.76457609,104320.0,104310.0,0.15401799]
[1738320988623,0.76457609,104320.0,104310.0,0.01021599]
[1738320988824,0.86193285,104320.0,104310.0,0.01021599]
[1738320998387,0.86193285,104320.0,104310.0,0.01017599]
[1738321014605,0.86205475,104320.0,104310.0,0.01017599]
[1738321021140,0.76469799,104320.0,104310.0,0.01017599]
[1738321039372,0.7622304,104320.0,104310.0,0.01017599]
[1738321040419,0.84319308,104320.0,104310.0,0.01017599]
[1738321047141,0.7622304,104320.0,104310.0,0.01017599]
[1738321047386,0.84319308,104320.0,104310.0,0.01017599]
[1738321047607,0.94054984,104320.0,104310.0,0.01017599]
[1738321049074,0.85958716,104320.0,104310.0,0.01017599]
[1738321050564,0.94054984,104320.0,104310.0,0.01017599]
[1738321050801,0.85958716,104320.0,104310.0,0.01017599]
[1738321056859,0.94054984,104320.0,104310.0,0.01017599]
[1738321069939,0.85958716,104320.0,104310.0,0.01017599]
[1738321070496,0.85958716,104320.0,104310.0,0.01227424]
[1738321074707,0.7622304,104320.0,104310.0,0.01227424]
[1738321075366,0.7622304,104320.0,104310.0,0.08747424]
[1738321079871,0.84319308,104320.0,104310.0,0.01227424]
[1738321085515,0.7622304,104320.0,104310.0,0.01227424]
[1738321089481,0.76469799,104320.0,104310.0,0.14107424]
[1738321089966,0.80055355,104320.0,104310.0,0.14107424]
[1738321090774,0.88151623,104320.0,104310.0,0.14107424]
[1738321091208,0.87904864,104320.0,104310.0,0.01227424]
[1738321096850,0.79808596,104320.0,104310.0,0.01227424]
[1738321097088,0.79808596,104320.0,104310.0,0.09467424]
[1738321097556,0.7622304,104320.0,104310.0,0.09467424]
[1738321100498,0.84795159,104320.0,104310.0,0.09467424]
[1738321103751,0.8418351,104320.0,104310.0,0.09467424]
[1738321104977,0.92279778,104320.0,104310.0,0.09467424]
[1738321107708,0.8418351,104320.0,104310.0,0.09467424]
[1738321108188,0.93919186,104320.0,104310.0,0.09467424]
[1738321108841,1.02015454,104320.0,104310.0,0.09467424]
[1738321109026,1.02015454,104320.0,104310.0,0.01227424]
[1738321110117,1.10111722,104320.0,104310.0,0.01227424]
[1738321110336,0.24776468,104310.0,104300.0,0.1379833]
[1738321110554,0.9213146,104310.0,104300.0,0.08111464]
[1738321110774,0.9213146,104310.0,104300.0,0.0098833]
[1738321111287,0.16929659,104290.0,104280.0,0.81488799]
[1738321111522,0.74548975,104290.0,104280.0,0.82487449]
[1738321112050,0.60166075,104290.0,104280.0,0.82487449]
[1738321112274,0.59919316,104290.0,104280.0,0.90583717]
[1738321112535,0.60166075,104290.0,104280.0,0.90583717]
[1738321113441,0.60166075,104290.0,104280.0,1.03893717]
[1738321113668,0.60166075,104290.0,104280.0,1.03993717]
[1738321114010,0.59919316,104290.0,104280.0,1.03993717]
[1738321114235,0.69173756,104290.0,104280.0,1.03993717]
[1738321116444,0.71095493,104290.0,104280.0,1.03993717]
[1738321116862,0.62087812,104290.0,104280.0,1.03993717]
[1738321117909,0.62087812,104290.0,104280.0,0.95897449]
[1738321118208,0.62988808,104290.0,104280.0,1.03993717]
[1738321119280,0.77371708,104290.0,104280.0,1.03993717]
[1738321119908,0.77371708,104290.0,104280.0,0.95897449]
[1738321122499,0.87107384,104290.0,104280.0,0.95897449]
[1738321123323,0.87107384,104290.0,104280.0,0.29434249]
[1738321123962,0.87107384,104290.0,104280.0,0.43818549]
[1738321125104,0.87107384,104290.0,104280.0,0.43718549]
[1738321125488,0.87107384,104290.0,104280.0,0.43818549]
[1738321125894,0.77371708,104290.0,104280.0,0.43718549]
[1738321126219,0.77371708,104290.0,104280.0,0.43818549]
[1738321126404,0.77371708,104290.0,104280.0,0.51814817]
[1738321126624,0.62988808,104290.0,104280.0,0.51814817]
[1738321127211,0.62988808,104290.0,104280.0,0.51914817]
[1738321127658,0.87107384,104290.0,104280.0,0.51914817]
[1738321127941,0.77371708,104290.0,104280.0,0.51914817]
[1738321128150,0.62988808,104290.0,104280.0,0.51914817]
[1738321129630,0.77371708,104290.0,104280.0,0.51914817]
[1738321130451,0.77371708,104290.0,104280.0,0.43818549]
[1738321130866,0.77371708,104290.0,104280.0,0.51914817]
[1738321131483,0.78706392,104290.0,104280.0,0.51914817]
[1738321131892,0.78706392,104290.0,104280.0,0.43818549]
[1738321134798,0.78706392,104290.0,104280.0,0.51914817]
[1738321134992,0.78706392,104290.0,104280.0,0.43818549]
[1738321136048,0.77371708,104290.0,104280.0,0.43818549]
[1738321136276,0.62988808,104290.0,104280.0,0.51914817]
[1738321136734,0.77371708,104290.0,104280.0,0.51914817]
[1738321137473,0.62988808,104290.0,104280.0,0.51914817]
[1738321139168,0.77371708,104290.0,104280.0,0.51914817]
[1738321139733,0.77371708,104290.0,104280.0,0.52914817]
[1738321140385,0.77371708,104290.0,104280.0,0.44818549]
[1738321140766,0.77371708,104290.0,104280.0,0.52914817]
[1738321141536,0.87107384,104290.0,104280.0,0.52914817]
[1738321141945,0.77371708,104290.0,104280.0,0.52914817]
[1738321144459,0.62988808,104290.0,104280.0,0.52914817]
[1738321145058,0.77371708,104290.0,104280.0,0.52914817]
[1738321146849,0.77371708,104290.0,104280.0,0.44818549]
[1738321149166,0.62087812,104290.0,104280.0,0.44818549]
[1738321151433,0.57619316,104290.0,104280.0,0.44818549]
[1738321152984,0.57619316,104290.0,104280.0,0.77718549]
[1738321156326,0.47895,104290.0,104280.0,0.77718549]
[1738321157351,0.47895,104290.0,104280.0,0.79514602]
[1738321169727,0.48781759,104290.0,104280.0,0.79514602]
[1738321170111,0.47895,104290.0,104280.0,0.79514602]
[1738321176674,0.47895,104290.0,104280.0,1.00554602]
[1738321182673,0.47895,104290.0,104280.0,0.46614602]
[1738321188045,0.47895,104290.0,104280.0,0.41624602]
[1738321190972,0.57619316,104290.0,104280.0,0.33404602]
[1738321194162,0.57619316,104290.0,104280.0,0.31608549]
[1738321194595,0.57619316,104290.0,104280.0,0.64508549]
[1738321199969,0.58497233,104290.0,104280.0,0.64508549]
[1738321207902,0.57619316,104290.0,104280.0,0.64508549]
[1738321217475,0.47895,104290.0,104280.0,0.72158549]
[1738321217697,0.47895,104290.0,104280.0,0.78748549]
[1738321221374,0.47895,104290.0,104280.0,1.32688549]
[1738321222778,0.47895,104290.0,104280.0,1.3344179]
[1738321223596,0.47895,104290.0,104280.0,1.3334179]
[1738321223833,0.47895,104290.0,104280.0,1.34243109]
[1738321224420,0.47895,104290.0,104280.0,1.43967425]
[1738321226036,0.47895,104290.0,104280.0,1.44067425]
[1738321227264,0.47895,104290.0,104280.0,0.57227425]
[1738321237904,0.47895,104290.0,104280.0,0.57843425]
[1738321238298,0.440596,104290.0,104280.0,0.57843425]
[1738321239684,0.440596,104290.0,104280.0,0.597603]
[1738321240278,0.440596,104290.0,104280.0,0.57743425]
[1738321240469,0.440596,104290.0,104280.0,0.57843425]
[1738321242071,0.440596,104290.0,104280.0,0.57227425]
[1738321242209,0.440596,104290.0,104280.0,0.57843425]
[1738321242618,0.440596,104290.0,104280.0,0.55843425]
[1738321242854,0.440596,104290.0,104280.0,0.55743425]
[1738321243636,0.440596,104290.0,104280.0,0.57743425]